{"text_format":"1","workbook":"xlsx","n_sheets":11,"sheets":["Калькулятор","список ТСО","С1","Воздушные линии","Кабельные линии","Трансформаторные подстанции","Пункты секционирования","Источники питания","ставки за 1кВт","Расчет1","Расчет2"],"not_rendered":{"charts":0,"images":0,"macros":1,"external_links":1,"defined_names":12,"comments":0,"pivot_tables":0},"unopened":[],"bounds":{"document_bytes":16777216,"sheet_cells":100000,"rows_first":2000,"rows_last":500,"rows_between":2000,"halvings":0,"cell_chars":16384,"cell_head_chars":4096},"cells_cut":0,"cells_raw":0,"read":"whole","date_system":"1900"}

{"sheet":"Калькулятор","index":0,"n_rows":20,"n_cols":2,"rows_kept":20,"cut":false,"hidden":false,"merged":[[1,1,1,2],[19,1,19,2]]}
[]
[null,"Расчет платы за технологическое присоединение к электрическим сетям"]
[]
[null,"Наименование сетевой организации:"]
[]
[null,"Уровень напряжения, кВ:"]
[]
[null,"Максимальная мощность, кВт:"]
[]
[null,"Наличие мероприятий по строительству «последней мили» со стороны сетевой организации"]
[null,"Строительство воздушных линий"]
[null,"Строительство кабельных линий"]
[null,"Строительство трансформаторных подстанций"]
[null,"Строительство пунктов секционирования"]
[null,"Строительство центров питания"]
[]
[]
[]
[]
[null,"Внимание! Данные расчеты носят справочный характер и не могут являться окончательными для оплаты стоимости технологического присоединения. \nКалькулятор расчета платы за технологическое присоединение к электрическим сетям предназначен для ориентировочного расчета стоимости размера платы за технологическое присоединение к электрическим сетям территориальной сетевой организации на территории Саратовской области."]

{"sheet":"список ТСО","index":1,"n_rows":75,"n_cols":2,"rows_kept":75,"cut":false,"hidden":true,"merged":[]}
["№ п/п","Полное (сокращенное) наименование территориальной сетевой организации (ТСО)"]
[1,"ООО «Балашовская распределительная компания»"]
[2,"ООО «Энергогаз-Групп»"]
[3,"ООО «Инвестиционная компания МЕГА»"]
[4,"ООО «Смюрэк»"]
[5,"ООО «ЭнергоТранс»"]
[6,"ООО «СОПОТ-РОПТ»"]
[7,"ООО «Поволжская электро – сетевая компания»"]
[8,"ООО «ЭСКо»"]
[9,"ООО «ОБЪЕДИНЕННАЯ ЭНЕРГЕТИЧЕСКАЯ КОМПАНИЯ» (ОЭКо)"]
[10,"ООО «СОЭСК»"]
[11,"ООО «СТЭК»"]
[12,"ООО «Энгельсская промышленная компания»"]
[13,"ООО «Территориальная электросетевая компания»"]
[14]
[15]
[16]
[17]
[18]
[19]
[20]
[21]
[22]
[23]
[24]
[25]
[26]
[27]
[28]
[29]
[30]
[31]
[32]
[33]
[34]
[35]
[36]
[37]
[38]
[39]
[40]
[41]
[42]
[43]
[44]
[45]
[46]
[47]
[48]
[49]
[50]
[51]
[52]
[53]
[54]
[55]
[56]
[57]
[58]
[59]
[60]
[61]
[62]
[63]
[64]
[65]
[66]
[67]
[68]
[69]
[70]
[71]
[72]
[73]
[74]

{"sheet":"С1","index":2,"n_rows":10,"n_cols":6,"rows_kept":10,"cut":false,"hidden":true,"merged":[]}
["Стандартизированная тарифная ставка на покрытие расходов на технологическое присоединение энергопринимающих устройств потребителей электрической энергии, объектов электросетевого хозяйства, принадлежащих сетевым организациям и иным дицам, не включающим в себя строительство объектов электросетевого хозяйства, в расчете на 1 кВт присоединяемой мощности (руб./кВт) (С1), на территории Саратовской области"]
[]
["№ п/п","Наименование стандартизированной тарифной ставки",null,"Единица измерения","Категория до 150 кВт включительно по постоянной и временной схеме","Категория свыше 150 кВт по постоянной и временной схеме"]
[1,2,3,4,5,6]
[1,"С1","Стандартизированная тарифная ставка на покрытие расходов на технологическое присоединение энергопринимающих устройств потребителей электрической энергии, объектов электросетевого хозяйства, принадлежащих сетевым организациям и иным лицам, по мероприятиям, указанным в пункте 16 Методических указаний (кроме подпунктов «б» и «в»), ","руб. / кВт",771.15,771.15]
[null,null,"в том числе:"]
[1.1000000000000001,"С1.1 ","Подготовка и выдача сетевой организацией технических условий Заявителю (ТУ)","руб. / кВт",326.18,326.18]
[1.2,"С1.2 ","Проверка сетевой организацией выполнения Заявителем ТУ","руб. / кВт",164.83,164.83]
[1.3,"С1.3 ","Участие сетевой организации в осмотре должностным лицом органа федерального государственного энергетического надзора присоединяемых Устройств Заявителя","руб. / кВт",0,0]
[1.4,"С1.4 ","Фактические действия по присоединению и обеспечению работы Устройств в электрической сети","руб. / кВт",280.14,280.14]

{"sheet":"Воздушные линии","index":3,"n_rows":79,"n_cols":10,"rows_kept":79,"cut":false,"hidden":true,"merged":[]}
[null,null,null,"Стандартизированная тарифная ставка на покрытие расходов сетевой организации на строительство воздушных линий электропередачи"]
[]
[]
[]
["С2","Наименование стандартизированной тарифной ставки","Размер ставки для заявителей с максимальной мощностью свыше 150 кВт, руб./км","Длина линии, км","Размер ставки для  заявителей с максимальной мощностью до 150 кВт включительно, руб./км\nс 01.01.2017г. \nпо 30.09.2017г.","Длина линии, км","Размер ставки для заявителей с максимальной мощностью до 150 кВт включительно, руб./км\nс 01.10.2017г. \nпо 31.12.2017г.","Длина линии, км","Уровень напряжения в точке присоединения мощности заявителя"]
[1,1,2,3,4,5,6,7,8]
[null,"С2  Стандартизированная тарифная ставка на покрытие расходов сетевой организации на строительство воздушных линий электропередачи на уровне напряжения НН в расчете на 1 км линий"]
["1.1."," - прокладка воздушной линии-уровень напряжения в точке присоединения мощности заявителя НН (0,4 кВ и ниже)"]
["1.1","строительство ВЛИ-0,4 кВ СИП 4-2х16",185942.2,null,92971.1,null,0,null,"НН (0,4 кВ и ниже)"]
["1.2","строительство ВЛИ-0,4 кВ СИП 4-4х25",203141.3,null,101570.65,null,0,null,"НН (0,4 кВ и ниже)"]
["1.3","строительство ВЛИ-0,4 кВ СИП 4-4х35",197036.99,null,98518.5,null,0,null,"НН (0,4 кВ и ниже)"]
["1.4","строительство ВЛИ-0,4 кВ СИП 4-4х50",207189,null,103594.5,null,0,null,"НН (0,4 кВ и ниже)"]
["1.5","строительство ВЛИ-0,4 кВ СИП 4-4х70",250716,null,125358,null,0,null,"НН (0,4 кВ и ниже)"]
["1.6","строительство ВЛИ-0,4 кВ СИП 4-4х95",276480.03999999998,null,138240.01999999999,null,0,null,"НН (0,4 кВ и ниже)"]
["1.7","строительство ВЛИ-0,4 кВ СИП 4-4х120",302332,null,151166,null,0,null,"НН (0,4 кВ и ниже)"]
["1.8","строительство ВЛИ-0,4 кВ СИП 2-4х50 на металлических опорах",315974,null,157987,null,0,null,"НН (0,4 кВ и ниже)"]
["1.9","строительство ВЛИ-0,4 кВ СИП 2-4х70 на металлических опорах",336412,null,168206,null,0,null,"НН (0,4 кВ и ниже)"]
["1.10","строительство ВЛИ-0,4 кВ СИП 2-4х95 на металлических опорах",360058,null,180029,null,0,null,"НН (0,4 кВ и ниже)"]
["1.11","строительство ВЛИ-0,4 кВ СИП 2-4х120 на металлических опорах",377037,null,188518.5,null,0,null,"НН (0,4 кВ и ниже)"]
["1.12","строительство ВЛИ-0,4 кВ СИП 2-3х16+1х25",196571.6,null,98285.8,null,0,null,"НН (0,4 кВ и ниже)"]
["1.13","строительство ВЛИ-0,4 кВ СИП 2-3х25+1х35",221540.1,null,110770.05,null,0,null,"НН (0,4 кВ и ниже)"]
["1.14","строительство ВЛИ-0,4 кВ СИП 2-3х35+1х54,6",234789.5,null,117394.75,null,0,null,"НН (0,4 кВ и ниже)"]
["1.15","строительство ВЛИ-0,4 кВ СИП 2-3х50+1х54,6",245148.9,null,122574.45,null,0,null,"НН (0,4 кВ и ниже)"]
[null," - прокладка воздушной линии изолированным проводом"]
["1.16","строительство ВЛИ-0,4 кВ СИП 2-3х70+1х54,6",259398,null,129699,null,0,null,"НН (0,4 кВ и ниже)"]
["1.17","строительство ВЛИ-0,4 кВ СИП 2-3х95+1х95",289786.2,null,144893.1,null,0,null,"НН (0,4 кВ и ниже)"]
["1.18","строительство ВЛИ-0,4 кВ СИП 2-3х120+1х95",306725.3,null,153362.65,null,0,null,"НН (0,4 кВ и ниже)"]
["1.19","строительство ВЛ-10 кВ СИП 3-1х50",217617.24,null,108808.62,null,0,null,"НН (0,4 кВ и ниже)"]
["1.20","строительство ВЛ-10 кВ СИП 3-1х70",312234.06,null,156117.03,null,0,null,"НН (0,4 кВ и ниже)"]
["1.21","строительство ВЛЗ-10 кВ СИП 3-1х95",325065.07,null,162532.54,null,0,null,"НН (0,4 кВ и ниже)"]
["1.22","строительство ВЛЗ-10 кВ СИП 3-1х120",343692.9,null,171846.45,null,0,null,"НН (0,4 кВ и ниже)"]
["1.23","строительство ВЛЗ-10 кВ АС-50",178400.9,null,89200.45,null,0,null,"НН (0,4 кВ и ниже)"]
["1.24","строительство ВЛЗ-10 (6) кВ на железобетонных опорах с проводом АС-120",594501.19999999995,null,297250.59999999998,null,0,null,"НН (0,4 кВ и ниже)"]
[null,"С2  Стандартизированная тарифная ставка на покрытие расходов сетевой организации на строительство воздушных линий электропередачи на уровне напряжения СН2 в расчете на 1 км линий"]
[null," - прокладка воздушной линии-уровень напряжения в точке присоединения мощности заявителя СН2 (20-1 кВ)"]
["1.19","строительство ВЛ-10 кВ СИП 3-1х50",217617.24,null,108808.62,null,0,null,"СН2 (20-1 кВ)"]
["1.20","строительство ВЛ-10 кВ СИП 3-1х70",312234.06,null,156117.03,null,0,null,"СН2 (20-1 кВ)"]
["1.21","строительство ВЛЗ-10 кВ СИП 3-1х95",325065.07,null,162532.54,null,0,null,"СН2 (20-1 кВ)"]
["1.22","строительство ВЛЗ-10 кВ СИП 3-1х120",343692.9,null,171846.45,null,0,null,"СН2 (20-1 кВ)"]
["2.2"]
["1.23","строительство ВЛЗ-10 кВ АС-50",178400.9,null,89200.45,null,0,null,"СН2 (20-1 кВ)",{"$f":"C41/2","v":89200.45}]
["1.24","строительство ВЛЗ-10 (6) кВ на железобетонных опорах с проводом АС-120",594501.19999999995,null,297250.59999999998,null,0,null,"СН2 (20-1 кВ)"]
["1.25","строительство одноцепной ВЛ-35 кВ на железобетонных промежуточных и металлических анкерных опорах с проводом АС-95",447733.9,null,223866.95,null,0,null,"СН2 (20-1 кВ)"]
["1.26","строительство двухцепной ВЛ-35 кВ на железобетонных промежуточных и металлических анкерных опорах с проводом АС-95",584154.9,null,292077.45,null,0,null,"СН2 (20-1 кВ)"]
["2.3"," - прокладка воздушной линии изолированным самонесущим проводом в двухцепном исполнении",null,null,null,null,null,null,"СН2 (20-1 кВ)"]
["1.27","строительство одноцепной ВЛ-35 кВ на железобетонных промежуточных и металлических анкерных опорах с проводом АС-120",469082.7,null,234541.35,null,0,null,"СН2 (20-1 кВ)"]
["1.28","строительство двухцепной ВЛ-35 кВ на железобетонных промежуточных и металлических анкерных опорах с проводом АС-120",622332.80000000005,null,311166.40000000002,null,0,null,"СН2 (20-1 кВ)"]
["2.3.3","сечение 95мм2",0,null,0,null,0]
["2.3.4","сечение 120мм2",0,null,0,null,0]
["3","С2 (35кВ) -Стандартизированная тарифная ставка на покрытие расходов сетевой организации на строительство воздушных линий электропередачи на уровне напряжения СН1 35кВ в расчете на 1 км линий"]
["3.1"," - прокладка воздушной линии-уровень напряжения в точке присоединения мощности заявителя СН1 (35 кВ)"]
["1.25","строительство одноцепной ВЛ-35 кВ на железобетонных промежуточных и металлических анкерных опорах с проводом АС-95",447733.9,null,223866.95,null,0,null,"СН1 (35 кВ)"]
["1.26","строительство двухцепной ВЛ-35 кВ на железобетонных промежуточных и металлических анкерных опорах с проводом АС-95",584154.9,null,292077.45,null,0,null,"СН1 (35 кВ)"]
["1.27","строительство одноцепной ВЛ-35 кВ на железобетонных промежуточных и металлических анкерных опорах с проводом АС-120",469082.7,null,234541.35,null,0,null,"СН1 (35 кВ)"]
["1.28","строительство двухцепной ВЛ-35 кВ на железобетонных промежуточных и металлических анкерных опорах с проводом АС-120",622332.80000000005,null,311166.40000000002,null,0,null,"СН1 (35 кВ)"]
["3.2"," - прокладка воздушной линии неизолированным проводом в двухцепном исполнении",null,null,null,null,null,null,"СН1 (35 кВ)"]
["1.29","строительство одноцепной ВЛ-110 кВ на железобетонных промежуточных и металлических анкерных опорах с проводом АС-95",601375.9,null,300687.95,null,0,null,"СН1 (35 кВ)"]
["1.30","строительство одноцепной ВЛ-110 кВ на железобетонных промежуточных и металлических анкерных опорах с проводом АС-120",622404.69999999995,null,311202.34999999998,null,0,null,"СН1 (35 кВ)"]
["1.31","строительство двухцепной ВЛ-110 кВ на железобетонных промежуточных и металлических анкерных опорах с проводом АС-95",784405.5,null,392202.75,null,0,null,"СН1 (35 кВ)"]
["1.32","строительство двухцепной ВЛ-110 кВ на железобетонных промежуточных и металлических анкерных опорах с проводом АС-120",822553.4,null,411276.7,null,0,null,"СН1 (35 кВ)"]
["4","С2 (110кВ) - Стандартизированная тарифная ставка на покрытие расходов сетевой организации на строительство воздушных линий электропередачи на уровне напряжения ВН 110кВ в расчете на 1 км линий"]
[null," - прокладка воздушной линии-уровень напряжения в точке присоединения мощности заявителя ВН (110 кВ)"]
["1.29","строительство одноцепной ВЛ-110 кВ на железобетонных промежуточных и металлических анкерных опорах с проводом АС-95",601375.9,null,300687.95,null,0,null,"ВН (110 кВ)"]
["1.30","строительство одноцепной ВЛ-110 кВ на железобетонных промежуточных и металлических анкерных опорах с проводом АС-120",622404.69999999995,null,311202.34999999998,null,0,null,"ВН (110 кВ)"]
["1.31","строительство двухцепной ВЛ-110 кВ на железобетонных промежуточных и металлических анкерных опорах с проводом АС-95",784405.5,null,392202.75,null,0,null,"ВН (110 кВ)"]
["1.32","строительство двухцепной ВЛ-110 кВ на железобетонных промежуточных и металлических анкерных опорах с проводом АС-120",822553.4,null,411276.7,null,0,null,"ВН (110 кВ)"]
["4.1.5","сечение 185мм2",0,null,0,null,0]
["4.1.6","сечение 240мм2",0,null,0,null,0]
["4.2",0]
["4.2.1","сечение 70мм2 и менее",0,null,0,null,0]
["4.2.2","сечение 95мм2",0,null,0,null,0]
["4.2.3","сечение 120мм2",0,null,0,null,0]
["4.2.4","сечение 150мм2",0,null,0,null,0]
["4.2.5","сечение 185мм2",0,null,0,null,0]
["4.2.6","сечение 240мм2",0,null,0,null,0]
[]
[null,"Примечания:"]
[null,"ВЛ - воздушная линия."]
[null,"Коэффициент перевода для воздушной прокладки провода с алюминиевыми жилами = 4,19"]

{"sheet":"Кабельные линии","index":4,"n_rows":268,"n_cols":9,"rows_kept":268,"cut":false,"hidden":true,"merged":[]}
[null,null,null,null,"Стандартизированная тарифная ставка на покрытие расходов сетевой организации на строительство кабельных линий электропередачи"]
[]
[]
[]
["СЗ","Наименование стандартизированной тарифной ставки","Размер ставки для заявителей с максимальной мощностью свыше 150 кВт, руб./км","Длина линии, км","Размер ставки для  заявителей с максимальной мощностью до 150 кВт включительно, руб./км\nс 01.01.2017г. \nпо 30.09.2017г.","Длина линии, км","Размер ставки для заявителей с максимальной мощностью до 150 кВт включительно, руб./км\nс 01.10.2017г. \nпо 31.12.2017г.","Длина линии, км","Уровень напряжения в точке присоединения мощности заявителя"]
[2,1,2,3,4,5,6,7,8]
[5,"С3 Стандартизированная тарифная ставка на покрытие расходов сетевой организации на строительство кабельных линий электропередачи на уровне напряжения НН (0,4 кв и ниже) в расчете на 1 км линий (руб./км)"]
["5.1","прокладка кабельной линии:"]
["2.1.","строительство КЛ 0,4 кВ АВБбШв 4х25 мм2",176370.7,null,88185.35,null,0,null,"НН (0,4 кВ и ниже)"]
["2.2","строительство КЛ 0,4 кВ АВБбШв 4х120 мм2",276034,null,138017,null,0,null,"НН (0,4 кВ и ниже)"]
["2.3","строительство КЛ 0,4 кВ АСБ-1 4х70",478034,null,239017,null,0,null,"НН (0,4 кВ и ниже)"]
["2.4","строительство КЛ 0,4 кВ АСБ-1 4х95",507917,null,253958.5,null,0,null,"НН (0,4 кВ и ниже)"]
["2.5","строительство КЛ 0,4 кВ АСБ-1 4х120",508604.56,null,254302.27,null,0,null,"НН (0,4 кВ и ниже)"]
["2.6","строительство КЛ 0,4 кВ АСБ-1 4х150",427771.66,null,213885.83,null,0,null,"НН (0,4 кВ и ниже)"]
["2.7","строительство КЛ 0,4 кВ АСБ-1 4х185",435061.78,null,217530.89,null,0,null,"НН (0,4 кВ и ниже)"]
["2.8","строительство КЛ 0,4 кВ АСБ-1 4х240",655136.18999999994,null,327568.09000000003,null,0,null,"НН (0,4 кВ и ниже)"]
["2.9","строительство КЛ 0,4 кВ АСБ-1 4х70 с применением ГНБ",524163,null,262081.5,null,0,null,"НН (0,4 кВ и ниже)"]
["2.10","строительство КЛ 0,4 кВ АСБ-1 4х95 с применением ГНБ",572047,null,286023.5,null,0,null,"НН (0,4 кВ и ниже)"]
["2.11","строительство КЛ 0,4 кВ АСБ-1 4х120 с применением ГНБ",603252,null,301626,null,0,null,"НН (0,4 кВ и ниже)"]
["5.2","С3.2 НН прокладка кабельной линии (с учетом ГНБ):",null,null,null,null,null,null,"НН (0,4 кВ и ниже)"]
["2.12","строительство КЛ 0,4 кВ АСБ-1 4х150 с применением ГНБ",635088,3,317544,null,0,null,"НН (0,4 кВ и ниже)"]
["2.13","строительство КЛ 0,4 кВ АСБ-1 4х185 с применением ГНБ",685807,null,342903.5,null,0,null,"НН (0,4 кВ и ниже)"]
["5.2.3","КЛ 0,4 кВ АПвБбШв-1 сечение 4х70 мм2",0,null,0,null,0]
["5.2.4","КЛ 0,4 кВ АПвБбШв-1 сечение 4х95 мм2",0,null,0,null,0]
["5.2.5","КЛ 0,4 кВ АПвБбШв-1 сечение 4х120 мм2",0,null,0,null,0]
["5.2.6","КЛ 0,4 кВ АПвБбШв-1 сечение 4х150 мм2",0,null,0,null,0]
["5.2.7","КЛ 0,4 кВ АПвБбШв-1 сечение 4х185 мм2",0,null,0,null,0]
["5.2.8","КЛ 0,4 кВ АПвБбШв-1 сечение 4х240 мм2",0,null,0,null,0]
["5.2.9",null,0,null,0,null,0]
["5.2.10",null,0,null,0,null,0]
["5.2.11",null,0,null,0,null,0]
["5.3","С3.3 НН прокладка кабельной линии (с учетом асфальтобетонного покрытия):"]
["5.3.1","КЛ 0,4 кВ АПвБбШв-1 сечение 4х35 мм2",0,null,0,null,0]
["5.3.2","КЛ 0,4 кВ АПвБбШв-1 сечение 4х50 мм2",0,null,0,null,0]
["5.3.3","КЛ 0,4 кВ АПвБбШв-1 сечение 4х70 мм2",0,null,0,null,0]
["5.3.4","КЛ 0,4 кВ АПвБбШв-1 сечение 4х95 мм2",0,null,0,null,0]
["5.3.5","КЛ 0,4 кВ АПвБбШв-1 сечение 4х120 мм2",0,null,0,null,0]
["5.3.6","КЛ 0,4 кВ АПвБбШв-1 сечение 4х150 мм2",0,null,0,null,0]
["5.3.7","КЛ 0,4 кВ АПвБбШв-1 сечение 4х185 мм2",0,null,0,null,0]
["5.3.8","КЛ 0,4 кВ АПвБбШв-1 сечение 4х240 мм2",0,null,0,null,0]
["5.3.9",null,0,null,0,null,0]
["5.3.10",null,0,null,0,null,0]
["5.3.11",null,0,null,0,null,0]
["5.4","- подземная прокладка в траншее 2-х кабелей с медными жилами марки:"]
["5.4.1","сечение жилы 10 мм2",0,null,0,null,0]
["5.4.2","сечение жилы 16 мм2",0,null,0,null,0]
["5.4.3","сечение жилы 25 мм2",0,null,0,null,0]
["5.4.4","сечение жилы 35 мм2",0,null,0,null,0]
["5.4.5","сечение жилы 50 мм2",0,null,0,null,0]
["5.4.6","сечение жилы 70 мм2",0,null,0,null,0]
["5.4.7","сечение жилы 95 мм2",0,null,0,null,0]
["5.4.8","сечение жилы 120 мм2",0,null,0,null,0]
["5.4.9","сечение жилы 150 мм2",0,null,0,null,0]
["5.4.10","сечение жилы 185 мм2",0,null,0,null,0]
["5.4.11","сечение жилы 240 мм2",0,null,0,null,0]
["5.5","- устройство перехода кабельной линии под автомобильной дорогой, железнодорожными путями плетью из 1 трубы с затягиванием в нее 3-х кабелей с алюминиевыми жилами марки:"]
["5.5.1","сечение жилы 10 мм2",0,null,0,null,0]
["5.5.2","сечение жилы 16 мм2",0,null,0,null,0]
["5.5.3","сечение жилы 25 мм2",0,null,0,null,0]
["5.5.4","сечение жилы 35 мм2",0,null,0,null,0]
["5.5.5","сечение жилы 50 мм2",0,null,0,null,0]
["5.5.6","сечение жилы 70 мм2",0,null,0,null,0]
["5.5.7","сечение жилы 95 мм2",0,null,0,null,0]
["5.5.8","сечение жилы 120 мм2",0,null,0,null,0]
["5.5.9","сечение жилы 150 мм2",0,null,0,null,0]
["5.5.10","сечение жилы 185 мм2",0,null,0,null,0]
["5.5.11","сечение жилы 240 мм2",0,null,0,null,0]
["5.6","- устройство перехода кабельной линии под автомобильной дорогой, железнодорожными путями плетью из 3 труб с затягиванием в нее 3-х кабелей с алюминиевыми жилами марки:"]
["5.6.1","сечение жилы 10 мм2",0,null,0,null,0]
["5.6.2","сечение жилы 16 мм2",0,null,0,null,0]
["5.6.3","сечение жилы 25 мм2",0,null,0,null,0]
["5.6.4","сечение жилы 35 мм2",0,null,0,null,0]
["5.6.5","сечение жилы 50 мм2",0,null,0,null,0]
["5.6.6","сечение жилы 70 мм2",0,null,0,null,0]
["5.6.7","сечение жилы 95 мм2",0,null,0,null,0]
["5.6.8","сечение жилы 120 мм2",0,null,0,null,0]
["5.6.9","сечение жилы 150 мм2",0,null,0,null,0]
["5.6.10","сечение жилы 185 мм2",0,null,0,null,0]
["5.6.11","сечение жилы 240 мм2",0,null,0,null,0]
["5.7","- устройство перехода кабельной линии под автомобильной дорогой, железнодорожными путями плетью из 1 трубы с затягиванием в нее 3-х кабелей с медными жилами марки:"]
["5.7.1","сечение жилы 10 мм2",0,null,0,null,0]
["5.7.2","сечение жилы 16 мм2",0,null,0,null,0]
["5.7.3","сечение жилы 25 мм2",0,null,0,null,0]
["5.7.4","сечение жилы 35 мм2",0,null,0,null,0]
["5.7.5","сечение жилы 50 мм2",0,null,0,null,0]
["5.7.6","сечение жилы 70 мм2",0,null,0,null,0]
["5.7.7","сечение жилы 95 мм2",0,null,0,null,0]
["5.7.8","сечение жилы 120 мм2",0,null,0,null,0]
["5.7.9","сечение жилы 150 мм2",0,null,0,null,0]
["5.7.10","сечение жилы 185 мм2",0,null,0,null,0]
["5.7.11","сечение жилы 240 мм2",0,null,0,null,0]
["5.8","- устройство перехода кабельной линии под автомобильной дорогой, железнодорожными путями плетью из 3 труб с затягиванием в нее 3-х кабелей с медными жилами марки:"]
["5.8.1","сечение жилы 10 мм2",0,null,0,null,0]
["5.8.2","сечение жилы 16 мм2",0,null,0,null,0]
["5.8.3","сечение жилы 25 мм2",0,null,0,null,0]
["5.8.4","сечение жилы 35 мм2",0,null,0,null,0]
["5.8.5","сечение жилы 50 мм2",0,null,0,null,0]
["5.8.6","сечение жилы 70 мм2",0,null,0,null,0]
["5.8.7","сечение жилы 95 мм2",0,null,0,null,0]
["5.8.8","сечение жилы 120 мм2",0,null,0,null,0]
["5.8.9","сечение жилы 150 мм2",0,null,0,null,0]
["5.8.10","сечение жилы 185 мм2",0,null,0,null,0]
["5.8.11","сечение жилы 240 мм2",0,null,0,null,0]
["6","С3 Стандартизированная тарифная ставка на покрытие расходов сетевой организации на строительство кабельных линий электропередачи на уровне напряжения СН2 (20-1кВ) в расчете на 1 км линий (руб./км)"]
["6.1"]
["2.14"," строительство КЛ 10 (6) кВ, АСБ-10 3х120",355925.8,null,177962.9,null,0,null,"СН2 (20-1 кВ)"]
["2.15"," строительство КЛ 10 (6) кВ, АСБ-10 3х150",647010,null,323505,null,0,null,"СН2 (20-1 кВ)"]
["2.16"," строительство КЛ 10 (6) кВ, АСБ-10 3х185",569463,null,284731.5,null,0,null,"СН2 (20-1 кВ)"]
["2.17"," строительство КЛ 10 (6) кВ, АСБ-10 3х240",637064.76,null,318532.38,null,0,null,"СН2 (20-1 кВ)"]
["2.18"," строительство КЛ 10 (6) кВ, АСБ-10 3х150 с применением установок ГНБ",711152,null,355576,null,0,null,"СН2 (20-1 кВ)"]
["2.19"," строительство КЛ 10 (6) кВ, АСБ-10 3х185 с применением установок ГНБ",764207,null,382103.5,null,0,null,"СН2 (20-1 кВ)"]
["2.20"," строительство КЛ 10 (6) кВ, АСБ-10 3х240 с применением установок ГНБ",836038,null,418019,null,0,null,"СН2 (20-1 кВ)"]
["2.21","строительство КЛ-35 кВ в земле кабелем из сшитого полиэтилена с сечением 50 мм2",430466,null,215233,null,0,null,"СН2 (20-1 кВ)"]
["2.22","строительство КЛ-35 кВ в земле кабелем из сшитого полиэтилена с сечением 70 мм2",483830.7,null,241915.35,null,0,null,"СН2 (20-1 кВ)"]
["6.1.10",null,0,null,0,null,0]
["6.1.11",null,0,null,0,null,0]
["6.1.12",null,0,null,0,null,0]
["6.1.13",null,0,null,0,null,0]
["6.2","С3.2 СН2 прокладка кабельной линии (с учетом ГНБ):"]
["6.2.1","КЛ-10 кВ АСБ-10 сечение 3х50 мм2",0,null,0,null,0]
["6.2.2","КЛ-10 кВ АСБ-10 сечение 3х70 мм2",0,null,0,null,0]
["6.2.3","КЛ-10 кВ АСБ-10 сечение 3х95 мм2",0,null,0,null,0]
["6.2.4","КЛ-10 кВ АСБ-10 сечение 3х120 мм2",0,null,0,null,0]
["6.2.5","КЛ-10 кВ АСБ-10 сечение 3х150 мм2",0,null,0,null,0]
["6.2.6","КЛ-10 кВ АСБ-10 сечение 3х185 мм2",0,null,0,null,0]
["6.2.7","КЛ-10 кВ АСБ-10 сечение 3х240 мм2",0,null,0,null,0]
["6.2.8",null,0,null,0,null,0]
["6.2.9",null,0,null,0,null,0]
["6.2.10",null,0,null,0,null,0]
["6.2.11",null,0,null,0,null,0]
["6.2.12",null,0,null,0,null,0]
["6.2.13",null,0,null,0,null,0]
["6.3","С3.3 СН2 прокладка кабельной линии (с учетом асфальтобетонного покрытия):"]
["6.3.1","КЛ-10 кВ АСБ-10 сечение 3х50 мм2",0,null,0,null,0]
["6.3.2","КЛ-10 кВ АСБ-10 сечение 3х70 мм2",0,null,0,null,0]
["6.3.3","КЛ-10 кВ АСБ-10 сечение 3х95 мм2",0,null,0,null,0]
["6.3.4","КЛ-10 кВ АСБ-10 сечение 3х120 мм2",0,null,0,null,0]
["6.3.5","КЛ-10 кВ АСБ-10 сечение 3х150 мм2",0,null,0,null,0]
["6.3.6","КЛ-10 кВ АСБ-10 сечение 3х185 мм2",0,null,0,null,0]
["6.3.7","КЛ-10 кВ АСБ-10 сечение 3х240 мм2",0,null,0,null,0]
["6.3.8",null,0,null,0,null,0]
["6.3.9",null,0,null,0,null,0]
["6.3.10",null,0,null,0,null,0]
["6.3.11",null,0,null,0,null,0]
["6.3.12",null,0,null,0,null,0]
["6.3.13",null,0,null,0,null,0]
["6.4"," - подземная прокладка в траншее 4-х и более кабелей с медными жилами"]
["6.4.1","сечение жилы 35 мм2",0,null,0,null,0]
["6.4.2","сечение жилы 50 мм2",0,null,0,null,0]
["6.4.3","сечение жилы 70 мм2",0,null,0,null,0]
["6.4.4","сечение жилы 95 мм2",0,null,0,null,0]
["6.4.5","сечение жилы 120 мм2",0,null,0,null,0]
["6.4.6","сечение жилы 150 мм2",0,null,0,null,0]
["6.4.7","сечение жилы 185 мм2",0,null,0,null,0]
["6.4.8","сечение жилы 240 мм2",0,null,0,null,0]
["6.4.9","сечение жилы 300 мм2",0,null,0,null,0]
["6.4.10","сечение жилы 400 мм2",0,null,0,null,0]
["6.4.11","сечение жилы 500 мм2",0,null,0,null,0]
["6.4.12","сечение жилы 630 мм2",0,null,0,null,0]
["6.4.13","сечение жилы 800 мм2",0,null,0,null,0]
["6.5","- устройство перехода кабельной линии под автомобильной дорогой, железнодорожными путями плетью из 1 трубы с затягиванием в нее 3-х кабелей с алюминиевыми жилами марки:"]
["6.5.1","сечение жилы 16 мм2",0,null,0,null,0]
["6.5.2","сечение жилы 25 мм2",0,null,0,null,0]
["6.5.3","сечение жилы 35 мм2",0,null,0,null,0]
["6.5.4","сечение жилы 50 мм2",0,null,0,null,0]
["6.5.5","сечение жилы 70 мм2",0,null,0,null,0]
["6.5.6","сечение жилы 95 мм2",0,null,0,null,0]
["6.5.7","сечение жилы 120 мм2",0,null,0,null,0]
["6.5.8","сечение жилы 150 мм2",0,null,0,null,0]
["6.5.9","сечение жилы 185 мм2",0,null,0,null,0]
["6.5.10","сечение жилы 240 мм2",0,null,0,null,0]
["6.6","- устройство перехода кабельной линии под автомобильной дорогой, железнодорожными путями плетью из 3 труб с затягиванием в нее 3-х кабелей с алюминиевыми жилами марки:"]
["6.6.1","сечение жилы 16 мм2",0,null,0,null,0]
["6.6.2","сечение жилы 25 мм2",0,null,0,null,0]
["6.6.3","сечение жилы 35 мм2",0,null,0,null,0]
["6.6.4","сечение жилы 50 мм2",0,null,0,null,0]
["6.6.5","сечение жилы 70 мм2",0,null,0,null,0]
["6.6.6","сечение жилы 95 мм2",0,null,0,null,0]
["6.6.7","сечение жилы 120 мм2",0,null,0,null,0]
["6.6.8","сечение жилы 150 мм2",0,null,0,null,0]
["6.6.9","сечение жилы 185 мм2",0,null,0,null,0]
["6.6.10","сечение жилы 240 мм2",0,null,0,null,0]
["6.7","- устройство перехода кабельной линии под автомобильной дорогой, железнодорожными путями плетью из 1 трубы с затягиванием в нее 3-х кабелей с медными жилами марки:"]
["6.7.1","сечение жилы 16 мм2",0,null,0,null,0]
["6.7.2","сечение жилы 25 мм2",0,null,0,null,0]
["6.7.3","сечение жилы 35 мм2",0,null,0,null,0]
["6.7.4","сечение жилы 50 мм2",0,null,0,null,0]
["6.7.5","сечение жилы 70 мм2",0,null,0,null,0]
["6.7.6","сечение жилы 95 мм2",0,null,0,null,0]
["6.7.7","сечение жилы 120 мм2",0,null,0,null,0]
["6.7.8","сечение жилы 150 мм2",0,null,0,null,0]
["6.7.9","сечение жилы 185 мм2",0,null,0,null,0]
["6.7.10","сечение жилы 240 мм2",0,null,0,null,0]
["6.8","- устройство перехода кабельной линии под автомобильной дорогой, железнодорожными путями плетью из 3 труб с затягиванием в нее 3-х кабелей с медными жилами марки:"]
["6.8.1","сечение жилы 16 мм2",0,null,0,null,0]
["6.8.2","сечение жилы 25 мм2",0,null,0,null,0]
["6.8.3","сечение жилы 35 мм2",0,null,0,null,0]
["6.8.4","сечение жилы 50 мм2",0,null,0,null,0]
["6.8.5","сечение жилы 70 мм2",0,null,0,null,0]
["6.8.6","сечение жилы 95 мм2",0,null,0,null,0]
["6.8.7","сечение жилы 120 мм2",0,null,0,null,0]
["6.8.8","сечение жилы 150 мм2",0,null,0,null,0]
["6.8.9","сечение жилы 185 мм2",0,null,0,null,0]
["6.8.10","сечение жилы 240 мм2",0,null,0,null,0]
[null,"С3 (35кВ) Стандартизированная тарифная ставка на покрытие расходов сетевой организации на строительство кабельных линий электропередачи на уровне напряжения СН1 (35кВ) в расчете на 1 км линий"]
["2.21"," - подземная прокладка в траншее кабеля с алюминиевой жилой"]
["2.21","строительство КЛ-35 кВ в земле кабелем из сшитого полиэтилена с сечением 50 мм2",430466,null,215233,null,0,null,"СН1 (35 кВ)"]
["2.22","строительство КЛ-35 кВ в земле кабелем из сшитого полиэтилена с сечением 70 мм2",483830.7,null,241915.35,null,0,null,"СН1 (35 кВ)"]
["2.23","строительство КЛ-110 кВ в земле кабелем из сшитого полиэтилена с сечением 185 мм2",2732039.5,null,1366019.75,null,0,null,"СН1 (35 кВ)"]
["2.24","строительство КЛ-110 кВ в земле кабелем из сшитого полиэтилена с сечением 240 мм2",2191395.6,null,1095697.8,null,0,null,"СН1 (35 кВ)"]
["7.1.5","сечение жилы 150 мм2",0,null,0,null,0]
["7.1.6","сечение жилы 185 мм2",0,null,0,null,0]
["7.1.7","сечение жилы 240 мм2",0,null,0,null,0]
["7.1.8","сечение жилы 300 мм2",0,null,0,null,0]
["7.1.9","сечение жилы 400 мм2",0,null,0,null,0]
["7.1.10","сечение жилы 500 мм2",0,null,0,null,0]
["7.1.11","сечение жилы 630 мм2",0,null,0,null,0]
["7.1.12","сечение жилы 800 мм2",0,null,0,null,0]
["7.2","- подземная прокладка в траншее кабеля с медной жилой "]
["7.2.1","сечение жилы 50 мм2",0,null,0,null,0]
["7.2.2","сечение жилы 70 мм2",0,null,0,null,0]
["7.2.3","сечение жилы 95 мм2",0,null,0,null,0]
["7.2.4","сечение жилы 120 мм2",0,null,0,null,0]
["7.2.5","сечение жилы 150 мм2",0,null,0,null,0]
["7.2.6","сечение жилы 185 мм2",0,null,0,null,0]
["7.2.7","сечение жилы 240 мм2",0,null,0,null,0]
["7.2.8","сечение жилы 300 мм2",0,null,0,null,0]
["7.2.9","сечение жилы 400 мм2",0,null,0,null,0]
["7.2.10","сечение жилы 500 мм2",0,null,0,null,0]
["7.2.11","сечение жилы 630 мм2",0,null,0,null,0]
["7.2.12","сечение жилы 800 мм2",0,null,0,null,0]
[null,"С3 (110кВ) Стандартизированная тарифная ставка на покрытие расходов сетевой организации на строительство кабельных линий электропередачи на уровне напряжения ВН (110кВ) в расчете на 1 км линий"]
["8.1"," - подземная прокладка в траншее кабеля с алюминиевой жилой"]
["2.23","строительство КЛ-110 кВ в земле кабелем из сшитого полиэтилена с сечением 185 мм2",2732039.5,null,1366019.75,null,0,null,"ВН (110 кВ)"]
["2.24","строительство КЛ-110 кВ в земле кабелем из сшитого полиэтилена с сечением 240 мм2",2191395.6,null,1095697.8,null,0,null,"ВН (110 кВ)"]
["8.1.3","сечение жилы 300 мм2",0,null,0,null,0]
["8.1.4","сечение жилы 400 мм2",0,null,0,null,0]
["8.1.5","сечение жилы 500 мм2",0,null,0,null,0]
["8.1.6","сечение жилы 630 мм2",0,null,0,null,0]
["8.1.7","сечение жилы 800 мм2",0,null,0,null,0]
["8.2","- подземная прокладка в траншее кабеля с медной жилой "]
["8.2.1","сечение жилы 185 мм2",0,null,0,null,0]
["8.2.2","сечение жилы 240 мм2",0,null,0,null,0]
["8.2.3","сечение жилы 300 мм2",0,null,0,null,0]
["8.2.4","сечение жилы 400 мм2",0,null,0,null,0]
["8.2.5","сечение жилы 500 мм2",0,null,0,null,0]
["8.2.6","сечение жилы 630 мм2",0,null,0,null,0]
["8.2.7","сечение жилы 800 мм2",0,null,0,null,0]
["8.3",0]
["8.3.1","сечение жилы 185 мм2",0,null,0,null,0]
["8.3.2","сечение жилы 240 мм2",0,null,0,null,0]
["8.3.3","сечение жилы 300 мм2",0,null,0,null,0]
["8.3.4","сечение жилы 400 мм2",0,null,0,null,0]
["8.3.5","сечение жилы 500 мм2",0,null,0,null,0]
["8.3.6","сечение жилы 630 мм2",0,null,0,null,0]
["8.3.7","сечение жилы 800 мм2",0,null,0,null,0]
["8.4"," - подземная прокладка в траншее 2-х кабелей с медной жилой "]
["8.4.1","сечение жилы 185 мм2",0,null,0,null,0]
["8.4.2","сечение жилы 240 мм2",0,null,0,null,0]
["8.4.3","сечение жилы 300 мм2",0,null,0,null,0]
["8.4.4","сечение жилы 400 мм2",0,null,0,null,0]
["8.4.5","сечение жилы 500 мм2",0,null,0,null,0]
["8.4.6","сечение жилы 630 мм2",0,null,0,null,0]
["8.4.7","сечение жилы 800 мм2",0,null,0,null,0]
[]
[null,"Примечания:"]
[null,"КЛ - кабельная линия."]
[null,"Коэффициент перевода для прокладки кабельной линии с алюминиевыми жилами = 4,92"]

{"sheet":"Трансформаторные подстанции","index":5,"n_rows":44,"n_cols":9,"rows_kept":44,"cut":false,"hidden":true,"merged":[]}
[null,null,null,null,"Стандартизированная тарифная ставка на покрытие расходов сетевой организации на строительство трансформаторных подстанций"]
[]
[]
[]
["С4","Наименование стандартизированной тарифной ставки","Размер ставки для заявителей с максимальной мощностью свыше 150 кВт, руб./кВт","наличие","Размер ставки для  заявителей с максимальной мощностью до 150 кВт включительно, руб./кВт\nс 01.01.2017г. \nпо 30.09.2017г.","наличие","Размер ставки для заявителей с максимальной мощностью до 150 кВт включительно, руб./кВт\nс 01.10.2017г. \nпо 31.12.2017г.","наличие","Уровень напряжения в точке присоединения мощности заявителя"]
["№ п/п",1,2,3,4,5,6,7,8]
["4","С4 Стандартизированная тарифная ставка на покрытие расходов сетевой организации на строительство транформаторных подстанций (КТП), распределительных трансформаторных подстанций (РТП) с уровнем напряжения до 35кВ (руб./кВт)"]
["3.1","до 15 кВт                                                                                                                            х                                                                                                х                                                                                             х"]
["4.1","строительство мачтовой КТП 25-10/0,4 кВ",3794.3,null,1897.15,null,0,null,"НН (0,4 кВ и ниже);             СН2 (20-1 кВ)"]
["4.2","строительство мачтовой КТП 40-10/0,4 кВ",2142.1,null,1071.05,null,0,null,"НН (0,4 кВ и ниже);             СН2 (20-1 кВ)"]
["4.3","строительство мачтовой КТП 63-10/0,4 кВ",1438.83,null,719.41,null,0,null,"НН (0,4 кВ и ниже);             СН2 (20-1 кВ)"]
["4.4","строительство КТП киоскового типа 100-10/0,4 кВ",1647.02,null,823.51,null,0,null,"НН (0,4 кВ и ниже);             СН2 (20-1 кВ)"]
["4.5","строительство КТП киоскового типа 160-10/0,4 кВ",1071.3399999999999,null,535.66999999999996,null,0,null,"НН (0,4 кВ и ниже);             СН2 (20-1 кВ)"]
["4.6","строительство КТП киоскового типа 250-10/0,4 кВ",861.46,null,430.73,null,0,null,"НН (0,4 кВ и ниже);             СН2 (20-1 кВ)"]
["4.7","строительство КТП киоскового типа 400-10/0,4 кВ",453.49,null,226.75,null,0,null,"НН (0,4 кВ и ниже);             СН2 (20-1 кВ)"]
["4.8","строительство КТП киоскового типа 630-10/0,4 кВ",477.13,null,238.57,null,0,null,"НН (0,4 кВ и ниже);             СН2 (20-1 кВ)"]
["4.9","строительство КТП киоскового типа 1000-10/0,4 кВ",471.19,null,235.59,null,0,null,"НН (0,4 кВ и ниже);             СН2 (20-1 кВ)"]
["4.10","строительство двухтрансформаторной КТП 100-10/0,2 кВ",2461.87,null,1230.94,null,0,null,"НН (0,4 кВ и ниже);             СН2 (20-1 кВ)"]
["4.11","строительство двухтрансформаторной КТП 160-10/0,3 кВ",1652.69,null,826.34,null,0,null,"НН (0,4 кВ и ниже);             СН2 (20-1 кВ)"]
["4.12","строительство двухтрансформаторной КТП 250-10/0,4 кВ",9695.2999999999993,null,4847.6499999999996,null,0,null,"НН (0,4 кВ и ниже);             СН2 (20-1 кВ)"]
["4.13","строительство двухтрансформаторной КТП 400-10/0,4 кВ",1021.66,null,510.83,null,0,null,"НН (0,4 кВ и ниже);             СН2 (20-1 кВ)"]
["4.14","строительство двухтрансформаторной КТП 630-10/0,4 кВ",836.92,null,418.46,null,0,null,"НН (0,4 кВ и ниже);             СН2 (20-1 кВ)"]
["4.15","строительство двухтрансформаторной КТП 1000-10/0,4 кВ",673.52,null,336.76,null,0,null,"НН (0,4 кВ и ниже);             СН2 (20-1 кВ)"]
["10.2"]
["4.16","2КТП-10/0,4 кВ 100 кВА",0,null,0,null,0]
["4.17","2КТП-10/0,4 кВ 160 кВА",0,null,0,null,0]
["4.18","2КТП-10/0,4 кВ 250 кВА",0,null,0,null,0]
["4.19","2КТП-10/0,4 кВ 400 кВА",0,null,0,null,0]
["4.20","2КТП-10/0,4 кВ 630 кВА",0,null,0,null,0]
["10.2.6","2КТП-10/0,4 кВ 1000 кВА",0,null,0,null,0]
["10.2.7","БКТП-10/0,4 кВ 160 кВА",0,null,0,null,0]
["10.3"]
["10.3.1","БКТП-10/0,4 кВ 250 кВА",0,null,0,null,0]
["10.3.2","БКТП-10/0,4 кВ 400 кВА",0,null,0,null,0]
["10.3.3","БКТП-10/0,4 кВ 630 кВА",0,null,0,null,0]
["10.3.4","БКТП-10/0,4 кВ 1000 кВА",0,null,0,null,0]
[null,"2 БКТП-10/0,4 кВ 160 кВА",0,null,0,null,0]
[null,"2 БКТП-10/0,4 кВ 250 кВА",0,null,0,null,0]
[null,"2 БКТП-10/0,4 кВ 400 кВА",0,null,0,null,0]
[null,"2 БКТП-10/0,4 кВ 630 кВА",0,null,0,null,0]
["10.3.5","2 БКТП-10/0,4 кВ 1000 кВА",0,null,0,null,0]
[]
[]
[null,"Коэффициент перевода «Прочие объекты» - 6,75 (для трансформаторных подстанций)"]

{"sheet":"Пункты секционирования","index":6,"n_rows":14,"n_cols":8,"rows_kept":14,"cut":false,"hidden":true,"merged":[]}
[null,null,null,"Стандартизированная тарифная ставка на покрытие расходов сетевой организации на строительство пунктов секционирования"]
[]
[]
[]
["С4","Наименование стандартизированной тарифной ставки","Размер ставки для заявителей с максимальной мощностью свыше 150 кВт, руб./кВт","наличие","Размер ставки для  заявителей с максимальной мощностью до 150 кВт включительно, руб./кВт\nс 01.01.2017г. \nпо 30.09.2017г.","наличие","Размер ставки для заявителей с максимальной мощностью до 150 кВт включительно, руб./кВт\nс 01.10.2017г. \nпо 31.12.2017г.","наличие"]
["№ п/п",1,2,3,4,5,6,7]
[3,"С4 Стандартизированная тарифная ставка на покрытие расходов сетевой организации на строительство пунктов секционирования (руб./кВт)"]
["3.1","строительство пунктов секционирования НН (0,4 кВ и ниже)",233.74,null,116.87,null,0]
["3.2","строительство пунктов секционирования (реклоузер с двумя разъединителями) СН2 (20-1 кВ); СН1 (35 кВ)",2454,null,1227,null,0]
["3.3",null,0,null,0,null,0]
[]
[]
[null,"Коэффициент перевода «Прочие объекты» - 6,64 (для пунктов секционирования)"]
[null,"Коэффициент перевода «Прочие объекты» - 6,75 (для пунктов секционирования)"]

{"sheet":"Источники питания","index":7,"n_rows":47,"n_cols":11,"rows_kept":47,"cut":false,"hidden":true,"merged":[]}
[null,null,null,null,"Стандартизированная тарифная ставка на покрытие расходов сетевой организации на строительство источников питания"]
[]
[]
[]
["С4","Наименование стандартизированной тарифной ставки","Размер ставки для заявителей с максимальной мощностью свыше 150 кВт, руб./кВт","наличие","Размер ставки для  заявителей с максимальной мощностью не более 150 кВт, руб./кВт\nс 01.01.2017г. \nпо 30.09.2017г.","наличие","Размер ставки для заявителей с максимальной мощностью не более 150 кВт, руб./кВт\nс 01.10.2017г. \nпо 31.12.2017г.","наличие","Уровень напряжения в точке присоединения мощности заявителя"]
["№ п/п",1,2,3,4,5,6,7,8]
["5","С4 Стандартизированная тарифная ставка на покрытие расходов сетевой организации на строительство центров питания, подстанций уровнем напряжения 35 кВ и выше (ПС)"]
[null," - подстанция 35/10(6) кВ"]
["5.1","строительство открытой однотрансформаторной ПС 35/0,4 кВ по схеме 35-3Н с т-ром 630 кВА",4743.66,null,2371.83,null,0,null,"НН (0,4 кВ и ниже)"]
["5.2","строительство открытой однотрансформаторной ПС 35/0,4 кВ по схеме 35-3Н с т-ром 1000 кВА",4208.76,null,2104.38,null,0,null,"НН (0,4 кВ и ниже)"]
["5.3","строительство открытой однотрансформаторной ПС 35/0,4 кВ по схеме 35-3Н с т-ром 1600 кВА",2759.24,null,1379.62,null,0,null,"НН (0,4 кВ и ниже)"]
["5.4","строительство открытой двухтрансформаторной ПС 35/0,4 кВ по схеме 35-4Н с т-ром 2*630 кВА",9835.9,null,4917.95,null,0,null,"НН (0,4 кВ и ниже)"]
["11.2"," - подстанция 35/10(6) кВ ",null,null,null,null,null,null,"НН (0,4 кВ и ниже)"]
["5.5","строительство открытой двухтрансформаторной ПС 35/0,4 кВ по схеме 35-4Н с т-ром 2*1000 кВА",6988.39,null,3494.19,null,0,null,"НН (0,4 кВ и ниже)"]
["5.6","строительство открытой двухтрансформаторной ПС 35/0,4 кВ по схеме 35-4Н с т-ром 2*1600 кВА",4397.74,null,2198.87,null,0,null,"НН (0,4 кВ и ниже)"]
["5.7","строительство открытой двухтрансформаторной ПС 35/0,4 кВ по схеме 35-5Н с т-ром 2*630 кВА",11515.08,null,5757.54,null,0,null,"НН (0,4 кВ и ниже)"]
["5.8","строительство открытой двухтрансформаторной ПС 35/0,4 кВ по схеме 35-5Н с т-ром 2*1000 кВА",8337.42,null,4168.71,null,0,null,"НН (0,4 кВ и ниже)"]
["11.3"," - подстанция 110/10(6) кВ ",null,null,null,null,null,null,"НН (0,4 кВ и ниже)"]
["5.9","строительство открытой двухтрансформаторной ПС 35/0,4 кВ по схеме 35-5Н с т-ром 2*1600 кВА",5241.87,null,2620.9299999999998,null,0,null,"НН (0,4 кВ и ниже)"]
["5.10","строительство открытой однотрансформаторной ПС 35/6-10 кВ по схеме 35-3Н с т-ром 1000 кВА",9026.7199999999993,null,4513.3599999999997,null,0,null,"СН2 (20-1 кВ)"]
["5.11","строительство открытой однотрансформаторной ПС 35/6-10 кВ по схеме 35-3Н с т-ром 1600 кВА",5715.28,null,2857.64,null,0,null,"СН2 (20-1 кВ)"]
["5.12","строительство открытой однотрансформаторной ПС 35/6-10 кВ по схеме 35-3Н с т-ром 2500 кВА",3656.21,null,1828.11,null,0,null,"СН2 (20-1 кВ)",null," "]
["11.4"," - подстанция 110/10(6) кВ",null,null,null,null,null,null,"СН2 (20-1 кВ)"]
["5.13","строительство открытой однотрансформаторной ПС 35/6-10 кВ по схеме 35-3Н с т-ром 4000 кВА",2377.42,null,1188.71,null,0,null,"СН2 (20-1 кВ)"]
["5.14","строительство открытой однотрансформаторной ПС 35/6-10 кВ по схеме 35-3Н с т-ром 6300 кВА",1526.06,null,763.03,null,0,null,"СН2 (20-1 кВ)"]
["5.15","строительство открытой двухтрансформаторной ПС 35/6-10 кВ по схеме 35-4Н с т-ром 2*1000 кВА",15223.61,null,7611.8,null,0,null,"СН2 (20-1 кВ)"]
["5.16","строительство открытой двухтрансформаторной ПС 35/6-10 кВ по схеме 35-4Н с т-ром 2*1600 кВА",9627.15,null,4813.57,null,0,null,"СН2 (20-1 кВ)"]
["5.17","строительство открытой двухтрансформаторной ПС 35/6-10 кВ по схеме 35-4Н с т-ром 2*2500 кВА",6153.35,null,3076.67,null,0,null,"СН2 (20-1 кВ)"]
["5.18","строительство открытой двухтрансформаторной ПС 35/6-10 кВ по схеме 35-4Н с т-ром 2*4000 кВА",3993.05,null,1996.53,null,0,null,"СН2 (20-1 кВ)"]
["5.19","строительство открытой двухтрансформаторной ПС 35/6-10 кВ по схеме 35-4Н с т-ром 2*6300 кВА",2562.0300000000002,null,1281.02,null,0,null,"СН2 (20-1 кВ)"]
["5.20","строительство открытой двухтрансформаторной ПС 35/6-10 кВ по схеме 35-5Н с т-ром 2*1000 кВА",16609.59,null,8304.7900000000009,null,0,null,"СН2 (20-1 кВ)"]
["5.21","строительство открытой двухтрансформаторной ПС 35/6-10 кВ по схеме 35-5Н с т-ром 2*1600 кВА",10494.47,null,5247.23,null,0,null,"СН2 (20-1 кВ)"]
["5.22","строительство открытой двухтрансформаторной ПС 35/6-10 кВ по схеме 35-5Н с т-ром 2*2500 кВА",6696.03,null,3348.01,null,0,null,"СН2 (20-1 кВ)"]
["5.23","строительство открытой двухтрансформаторной ПС 35/6-10 кВ по схеме 35-5Н с т-ром 2*4000 кВА",4340.43,null,2170.2199999999998,null,0,null,"СН2 (20-1 кВ)"]
["5.24","строительство открытой двухтрансформаторной ПС 35/6-10 кВ по схеме 35-5Н с т-ром 2*6300 кВА",2779.19,null,1389.6,null,0,null,"СН2 (20-1 кВ)"]
["5.25","строительство открытой однотрансформаторной ПС 35/6-10 кВ по схеме 35-9 с т-ром 1000 кВА",28201.65,null,14100.83,null,0,null,"СН2 (20-1 кВ)"]
["5.26","строительство открытой однотрансформаторной ПС 35/6-10 кВ по схеме 35-9 с т-ром 1600 кВА",17831.73,null,8915.86,null,0,null,"СН2 (20-1 кВ)"]
["5.27","строительство открытой однотрансформаторной ПС 35/6-10 кВ по схеме 35-9 с т-ром 2500 кВА",11315.2,null,5657.6,null,0,null,"СН2 (20-1 кВ)"]
["5.28","строительство открытой однотрансформаторной ПС 35/6-10 кВ по схеме 35-9 с т-ром 4000 кВА",7311.31,null,3655.65,null,0,null,"СН2 (20-1 кВ)"]
["5.29","строительство открытой однотрансформаторной ПС 35/6-10 кВ по схеме 35-9 с т-ром 6300 кВА",4654.76,null,2327.38,null,0,null,"СН2 (20-1 кВ)"]
["5.30","строительство открытой однотрансформаторной ПС 110/6-10 кВ по схеме 110-3Н с т-ром",2332.27,null,1166.1400000000001,null,0,null,"СН2 (20-1 кВ)"]
[]
["5.16"]
["11.4.4","мощностью 2 х 25 МВА",0,null,0,null,0]
[]
[]
[null,"Коэффициент перевода «Прочие объекты» - 6,75 (для источников питания)"]

{"sheet":"ставки за 1кВт","index":8,"n_rows":18,"n_cols":5,"rows_kept":18,"cut":false,"hidden":true,"merged":[[0,0,0,4]]}
["Ставки за единицу максимальной мощности за технологическое присоединение энергопринимающих устройств (энергетических установок) к электрическим сетям на 2017 год"]
[]
[null,"Наименование  тарифной ставки","Размер ставки для заявителей с максимальной мощностью свыше 150 кВт, руб./кВт","Размер ставки для  заявителей с максимальной мощностью до 150 кВт включительно, руб./кВт\nс 01.01.2017г. \nпо 30.09.2017г.","Размер ставки для заявителей с максимальной мощностью до 150 кВт включительно, руб./кВт\nс 01.10.2017г. \nпо 31.12.2017г."]
[1,2,3,4,5]
[1,"Разработка сетевой организацией проектной документации по строительству «последней мили»",0,0,0]
[2,"Выполнение ТУ сетевой организацией мероприятий, связанных со строительством «последней мили»","Х","Х","Х"]
["2.1.","строительство воздушных линий 0,4 -1 кВ НН",1137.92,568.96,0]
[null,"строительство воздушных линий 27,5-1 кВ СН2",1291.4100000000001,645.71]
["2.2.","строительство кабельных линий 0,4-1 кВ НН",1561.78,780.89,0]
[null,"строительство кабельных линий 0,4 кВ (с учетом ГНБ)",1561.78,780.89,0]
[null,"строительство кабельных линий 27,5-1 кВ СН2",1517.03,758.52,0]
[null,"строительство кабельных линий 10(6) кВ (с учетом ГНБ)",1517.03,758.52,0]
["2.3.","строительство пунктов секционирования",1181.06,590.53,0]
["2.4.","строительство комплектных трансформаторных подстанция (КТП),  с уровнем напряжения до 35 кВ:",7695.56,3847.78,0]
[null,"НН",7695.56,3847.78,0]
[null,"СН2",7695.56,3847.78,0]
[null,"СН1",7695.56,3847.78,0]
["2.5.","строительство центров питания, подстанций уровнем напряжения 35 кВ и выше (ПС)",0,0,0]

{"sheet":"Расчет1","index":9,"n_rows":28,"n_cols":3,"rows_kept":28,"cut":false,"hidden":true,"merged":[[27,1,27,2],[1,1,1,2],[12,1,12,2],[14,1,14,2],[16,1,16,2],[17,1,17,2]]}
[]
[null,"Расчет платы за технологическое присоединение к электрическим сетям"]
[]
[null,"Наименование сетевой организации:",{"$f":"Калькулятор!C4","v":0}]
[]
[null,"Уровень напряжения, кВ:",{"$f":"Калькулятор!C6","v":0}]
[]
[null,"Максимальная мощность, кВт:",{"$f":"Калькулятор!C8","v":0}]
[]
[null,"Наличие мероприятий по строительству «последней мили» со стороны сетевой организации",{"$f":"Калькулятор!C10","v":0}]
[]
[]
[null,"Расшифровка расчета платы за технологическое присоединение к электрическим сетям"]
[]
[null,"Плата за организационные мероприятия"]
[]
[null,"ПТПi (без \"последней мили\") = C1*N i"]
[null,"С1 = С1.1 + С1.2 + С1.3 + С1.4"]
[]
[null,"С1, рублей/кВт",{"$f":"IF(C8<=150,С1!E5,С1!F5)","v":771.15}]
[]
[null,"Плата за технологическое присоединение, руб. (без НДС)",{"$f":"C20*C8","v":0}]
[null,"Итого стоимость по договору технологического присоединения, руб. с НДС",{"$f":"C22*1.18","v":0}]
[]
[null,null,"≤≤"]
[]
[]
[null,"Внимание! Данные расчеты носят справочный характер и не могут являться окончательными для оплаты стоимости технологического присоединения. \nКалькулятор расчета платы за технологическое присоединение к электрическим сетям предназначен для ориентировочного расчета стоимости размера платы за технологическое присоединение к электрическим сетям сетевой организации на территории Саратровской области."]

{"sheet":"Расчет2","index":10,"n_rows":66,"n_cols":4,"rows_kept":66,"cut":false,"hidden":true,"merged":[[48,1,48,2],[65,1,65,2],[1,1,1,2],[19,1,19,2],[21,1,21,2],[22,3,24,3],[23,1,23,2],[24,1,24,2],[45,1,45,2],[47,1,47,2]]}
[]
[null,"Расчет платы за технологическое присоединение к электрическим сетям"]
[]
[null,"Наименование сетевой организации:",{"$f":"Калькулятор!C4","v":0}]
[]
[null,"Уровень напряжения, кВ:",{"$f":"Калькулятор!C6","v":0}]
[]
[null,"Максимальная мощность, кВт:",{"$f":"Калькулятор!C8","v":0}]
[]
[null,"Наличие мероприятий по строительству «последней мили» со стороны сетевой организации",{"$f":"Калькулятор!C10","v":0}]
[null,{"$f":"Калькулятор!B11","v":"Строительство воздушных линий"},{"$f":"Калькулятор!C11","v":0}]
[null,{"$f":"Калькулятор!B12","v":"Строительство кабельных линий"},{"$f":"Калькулятор!C12","v":0}]
[null,{"$f":"Калькулятор!B13","v":"Строительство трансформаторных подстанций"},{"$f":"Калькулятор!C13","v":0}]
[null,{"$f":"Калькулятор!B14","v":"Строительство пунктов секционирования"},{"$f":"Калькулятор!C14","v":0}]
[null,{"$f":"Калькулятор!B15","v":"Строительство центров питания"},{"$f":"Калькулятор!C15","v":0}]
[]
[]
[]
[]
[null,"Расшифровка расчета платы за технологическое присоединение к электрическим сетям"]
[]
[null,"Плата по стандартизированным тарифным ставкам",null,"Примечания"]
[null,null,null,"k ст. изм.-индексы изменения сметной стоимости по строительно-монтажным работам для Саратовской области на 1 квартал 2017 года в соответствии с письмом Минстроя России от 20.03.2017г. № 8802-ХМ/09 (применяются при расчете платы во 2 квартале 2017 года):\n «Воздушная прокладка провода с алюминиевыми жилами» - 4,19\n «Подземная прокладка кабеля с алюминиевыми жилами» - 4,92\n «Подземная прокладка кабеля с медными жилами» - 4,75\n «Прочие объекты» - 6,75"]
[null,"ПТП i  (вл (кл)+тп) = C1*N i + С2ij * k ст.изм.(вл) * Li (вл) + С3ij * k ст.изм. (кл) * Li (кл) + С4ij * k ст.изм.(пр) * N i"]
[]
[null,"С1, рублей/кВт",{"$f":"IF(C8<=150,С1!E5,С1!F5)","v":771.15},"Единая для всех ТСО"]
[null,"Плата за организационные мероприятия, руб. (без НДС)",{"$f":"C26*C8","v":0},"Единая для всех ТСО"]
[null,"Плата за строительство воздушных линий, руб.",0,"(в ценах 2001 года)"]
[null,"Индекс изменения сметной стоимости",0]
[null,"Плата за строительство воздушных линий, руб.",{"$f":"C28*C29","v":0},"В текущих ценах"]
[null,"Плата за строительство кабельных линий, руб.",1905264,"(в ценах 2001 года)"]
[null,"Индекс изменения сметной стоимости",0]
[null,"Плата за строительство кабельных линий, руб.",{"$f":"C31*C32","v":0},"В текущих ценах"]
[null,"Плата за строительство пунктов секционирования, руб.",0,"(в ценах 2001 года)"]
[null,"Индекс изменения сметной стоимости",0]
[null,"Плата за строительство пунктов секционирования, руб.",{"$f":"C34*C35","v":0},"В текущих ценах"]
[null,"Плата за строительство трансформаторных подстанций, руб.",0,"(в ценах 2001 года)"]
[null,"Индекс изменения сметной стоимости",0]
[null,"Плата за строительство трансформаторных подстанций, руб.",{"$f":"C37*C38","v":0},"В текущих ценах"]
[null,"Плата за строительство источников питания, руб.",0,"(в ценах 2001 года)"]
[null,"Индекс изменения сметной стоимости",0]
[null,"Плата за строительство источников питания, руб.",{"$f":"C40*C41","v":0},"В текущих ценах"]
[null,"Плата по стандартизированным тарифным ставкам с учетом индексов изменения сметной стоимости, руб.",{"$f":"C27+C30+C33+C36+C39+C42","v":0}]
[null,"Итого стоимость по договору технологического присоединения, руб. с НДС",{"$f":"C43*1.18","v":0}]
[]
[null,"Плата по ставкам за единицу максимальной мощности",null,"Примечания"]
[]
[null,"ПТП i = C1*N i + С2i*N i + С3i*N i+ С4*N i"]
[]
[null,"С1, рублей/кВт",{"$f":"C26","v":771.15},"Единая для всех ТСО"]
[null,"Плата за организационные мероприятия, руб. (без НДС)",{"$f":"C50*C8","v":0},"Единая для всех ТСО"]
[null,"Плата за проектные работы",{"$f":"Калькулятор!$C$8*IF(Калькулятор!$C$8>150,'ставки за 1кВт'!C5,'ставки за 1кВт'!D5)","v":0},"В текущих ценах"]
[null,"Плата за строительство воздушных линий, руб.",{"$f":"IF(AND(Калькулятор!C11 = \"Да\",C6<=1),Калькулятор!$C$8*IF(Калькулятор!$C$8>150,'ставки за 1кВт'!C7,'ставки за 1кВт'!D7),0)","v":0},"В текущих ценах"]
[null,"Плата за строительство воздушных линий, руб.",{"$f":"IF(AND(Калькулятор!C11 = \"Да\",6<=C6,C6<=10),Калькулятор!$C$8*IF(Калькулятор!$C$8>150,'ставки за 1кВт'!C8,'ставки за 1кВт'!D8),0)","v":0},"В текущих ценах"]
[null,"Плата за строительство кабельных линий, руб.",{"$f":"IF(AND(Калькулятор!C12 = \"Да\",C6<=1),Калькулятор!$C$8*IF(Калькулятор!$C$8>150,'ставки за 1кВт'!C9,'ставки за 1кВт'!D9),0)","v":0},"В текущих ценах"]
[null,"Плата за строительство кабельных линий, руб.",{"$f":"IF(AND(Калькулятор!C12 = \"Да\",6<=C6,C6<=10),Калькулятор!$C$8*IF(Калькулятор!$C$8>150,'ставки за 1кВт'!C10,'ставки за 1кВт'!D10),0)","v":0},"В текущих ценах"]
[null,"Плата за строительство пунктов секционирования, руб.",{"$f":"IF(Калькулятор!C13 = \"Да\",Калькулятор!$C$8*IF(Калькулятор!$C$8>150,'ставки за 1кВт'!C13,'ставки за 1кВт'!D13),0)","v":0},"В текущих ценах"]
[null,"Плата за строительство трансформаторных подстанций, руб.",{"$f":"IF(Калькулятор!C13 = \"Да\",Калькулятор!$C$8*IF(Калькулятор!$C$8>150,'ставки за 1кВт'!C14,'ставки за 1кВт'!D14),0)","v":0},"В текущих ценах"]
[null,"Плата за строительство источников питания, руб.",{"$f":"IF(Калькулятор!C15 = \"Да\",Калькулятор!$C$8*IF(Калькулятор!$C$8>150,'ставки за 1кВт'!C18,'ставки за 1кВт'!D18),0)","v":0},"В текущих ценах"]
[null,"Плата по ставкам за единицу максимальной мощности с учетом коэффициента перевода, руб. (без НДС, без налога на прибыль)",{"$f":"C51+C52+C53+C54+C55+C56+C57+C58","v":0}]
[null,"Итого стоимость по договору технологического присоединения, руб. с НДС",{"$f":"C60*1.18","v":0}]
[]
[]
[]
[]
[null,"Внимание! Данные расчеты носят справочный характер и не могут являться окончательными для оплаты стоимости технологического присоединения. \nКалькулятор расчета платы за технологическое присоединение к электрическим сетям предназначен для ориентировочного расчета стоимости размера платы за технологическое присоединение к электрическим сетям сетевой организации на территории Саратовской области."]